Cogmind - Beta 16 @@@ ROGUE MODE // 2026.02.05 @ 15:21:40 Player: Wulphy Result: Destroyed by Autobeam Turret with Autobeam Performance ------------- Evolutions (0) 0 Regions Visited (2) 400 Robots Destroyed (24) 120 Value Destroyed (563) 563 Prototype IDs (14) 280 Alien Tech Used (0) 0 Bonus (-88) -88 TOTAL SCORE: 1275 Bonus ------- Friendly Fire -88 Cogmind --------- Core Integrity 0/250 Matter 270/300 Energy 84/200 System Corruption 3% Temperature Cool (18) Movement Rolling (110) Ox2 Location -10/Subcaves Parts ------- > --- POWER (1) -------- Subdweller Power Source > --- PROPULSION (2) --- Wheel Wheel > --- UTILITY (2) ------ Improved Heat Sink High-capacity Storage Unit > --- WEAPON (2) ------- Subdweller Laser Subdweller Beam Cannon > --- INVENTORY (20) --- Meta Core Wheel Subdweller Monowheel Disposable Heat Sink Huge Storage Unit Structural Scanner Subdweller Optics Seismic Detector Subdweller Laser Light Assault Rifle Light Assault Rifle Subdweller Machine Gun Subdweller Machine Gun Subdweller Machine Gun Mining Laser Flamer Flamer Hammer Shrapnel Trap Peak State ------------ > --- POWER ------------ Subdweller Power Source > --- PROPULSION ------- Wheel Wheel > --- UTILITY ---------- Improved Heat Sink High-capacity Storage Unit > --- WEAPON ----------- Flamer Flamer > --- INVENTORY -------- Meta Core Wheel Wheel Subdweller Monowheel Disposable Heat Sink Huge Storage Unit Structural Scanner Subdweller Optics Seismic Detector Subdweller Laser Subdweller Laser Subdweller Beam Cannon Light Assault Rifle Light Assault Rifle Subdweller Machine Gun Subdweller Machine Gun Subdweller Machine Gun Mining Laser Hammer Shrapnel Trap [Rating: 16] Favorites ----------- Power Light Ion Engine Engine Light Ion Engine Propulsion Light Treads Treads Light Treads Leg Aluminum Leg Wheel Wheel Utility Seismic Detector Device Seismic Detector Storage Large Storage Unit Protection Propulsion Shielding Weapon Medium Laser Energy Gun Medium Laser Energy Cannon Subdweller Beam Cannon Ballistic Gun Assault Rifle Special Weapon Flamer Impact Weapon Hammer Build | -11 -10 -10 ------- Run | Yrd Mat Sub Slots Evolved . | . . . Power . | . . . Propulsion . | . . . Utility . | . . . Weapon . | . . . Parts Attached 29 | 7 7 15 Power 4 | 1 2 1 Engine 4 | 1 2 1 Core . | . . . Reactor . | . . . Propulsion 7 | 2 2 3 Treads 2 | . 2 . Leg 2 | 2 . . Wheel 3 | . . 3 Hover . | . . . Flight . | . . . Utility 7 | 2 2 3 Device 3 | 1 . 2 Storage 3 | 1 1 1 Processor . | . . . Hackware . | . . . Protection 1 | . 1 . Artifact . | . . . Weapon 11 | 2 1 8 Energy Gun 3 | 1 1 1 Energy Cannon 1 | . . 1 Ballistic Gun 4 | 1 . 3 Ballistic Cannon . | . . . Launcher . | . . . Special Weapon 2 | . . 2 Impact Weapon 1 | . . 1 Slashing Weapon . | . . . Piercing Weapon . | . . . Special Melee Weapon . | . . . Unidentified Prototypes . | . . . Parts Lost 8 | . 1 7 Power 2 | . . 2 Propulsion 2 | . . 2 Utility 1 | . . 1 Weapon 3 | . 1 2 Highest Loss Streak 2 | . 1 2 To Critical Strikes . | . . . Average Backups 11 | 3 9 14 Power . | . . . Propulsion 3 | 2 3 2 Utility 3 | . 2 5 Weapon 4 | . 2 6 Tool/Special . | . . . Unused Backups 13 | . 2 11 Power 1 | . 1 . Propulsion 2 | . . 2 Utility 4 | . . 4 Weapon 5 | . 1 4 Tool/Special 1 | . . 1 Average Slot Usage (%) 99 | . 100 99 Engine 13 | . 14 13 Treads 13 | . 10 16 Leg 7 | . 17 . Wheel 6 | . . 11 Device 11 | . 10 12 Storage 14 | . 14 14 Protection 2 | . 3 1 Energy Gun 11 | . 16 8 Ballistic Gun 10 | . 11 9 Special Weapon 4 | . . 8 Peak Build Rating 16 | 7 8 16 Average Rating 9 | 5 7 10 On Entrance 5 | . 7 8 Avg Prop Armor Cover (%) 14 | . . 14 Naked Turns . | . . . Heaviest Build 58 | 13 30 58 Greatest Support 40 | 20 40 40 Greatest Overweight (x) 5 | . 1 5 Average Overweight (x) . | . . 1 Largest Inventory Capacity 20 | 8 15 20 Average Capacity 15 | 7 13 17 Most Carried 20 | 6 13 20 Average Carried 12 | 4 9 15 Final Capacity 20 | 8 15 20 Final Carried 19 | 6 13 19 Class Distribution -------------------- 96% | Mutant 3% | Scavenger-Mutant Dominant Class ---------------- Mutant | -10/Materials Mutant | -10/Subcaves Resources | -11 -10 -10 ----------- Run | Yrd Mat Sub Matter Collected 813 | 297 219 297 Remotely . | . . . Salvage Created 703 | 66 390 247 Parts 40 | 3 24 13 Haulers Intercepted . | . . . Recyclers Shooed . | . . . Parts Field Recycled . | . . . Retrieved Matter . | . . . Parts Self-Destructed 13 | . . 13 Prevented . | . . . Parts Restored . | . . . Kills | -11 -10 -10 ------- Run | Yrd Mat Sub Combat Hostiles Destroyed 22 | . 13 9 Guns 18 | . 13 5 Cannons 3 | . . 3 AOE 1 | . . 1 Classes Destroyed 7 | 2 2 3 Tunneler 1 | 1 . . Recycler 1 | 1 . . Swarmer 10 | . 6 4 Grunt 8 | . 7 1 Sentry 1 | . . 1 Artisan 1 | . . 1 Subdweller 3 | . . 3 Best Kill Streak 3 | 2 3 2 Combat Bots Only 3 | . 3 2 Max Kills in Single Turn 1 | 1 1 1 Gunslinging . | . . . Exploded 1 | . . 1 Melee . | . . . Uniques/NPCs Destroyed . | . . . Combat | -11 -10 -10 -------- Run | Yrd Mat Sub Hostile Shots Fired 156 | . 69 87 Missed 51 | . 24 27 Hits 105 | . 45 60 Projectile 105 | . 45 60 Critical Strikes 1 | . . 1 Damage Taken 1312 | . 436 876 Core 251 | . 74 177 Absorbed by Shields . | . . . Redirected to Shielding 51 | . 34 17 Core Remaining (%) 100 | 100 . . Volleys Fired 81 | 9 33 39 Largest 2 | 2 2 2 Hottest 200 | 70 90 200 Shots Fired 162 | 18 66 78 Gun 153 | 18 66 69 Cannon 1 | . . 1 Launcher . | . . . Special 8 | . . 8 Kinetic 82 | 9 29 44 Thermal 71 | 9 33 29 Explosive . | . . . Electromagnetic 9 | . 4 5 Robot Hit Streak 14 | 5 14 8 Robot Miss Streak 5 | 3 3 5 Penetration Max . | . . . Secondary Targets 4 | . 4 . Max Gunslinging Chain 1 | . 1 . Shots Hit Robots 109 | 11 46 52 Core Hits 39 | 3 21 15 Critical Kills . | . . . Critical Parts Destroyed 1 | . . 1 Critical Strikes 6 | 1 3 2 Burn 5 | 1 3 1 Smash 1 | . . 1 Melee Attacks 4 | . . 4 Impact 4 | . . 4 Slashing . | . . . Piercing . | . . . Sneak Attacks 1 | . . 1 Combat Hostiles . | . . . Follow-up Attacks . | . . . Damage Inflicted 1529 | 143 586 800 Guns 1317 | 143 586 588 Cannons 28 | . . 28 Explosions 35 | . . 35 Melee 84 | . . 84 Ramming . | . . . Kinetic 718 | 55 226 437 Thermal 704 | 88 349 267 Explosive . | . . . Electromagnetic 23 | . 11 12 Impact 84 | . . 84 Slashing . | . . . Piercing . | . . . Highest Corruption 3 | . 3 3 Average Corruption 2 | . 2 3 Corruption Purged . | . . . Corruption Blocked . | . . . Effects 29 | . 7 22 Message Errors 10 | . 4 6 Matter Fused 6 | . 1 5 Heat Flow Errors 4 | . . 4 Energy Discharges 4 | . 1 3 Data Loss (minor) 4 | . . 4 Data Loss (major) 1 | . 1 . Overload Shots . | . . . Overflow Damage 59 | . . 59 Projectiles . | . . . Explosions 15 | . . 15 Melee 44 | . . 44 Knockbacks 1 | . . 1 Impact 1 | . . 1 Kinetic . | . . . Secondary . | . . . Self-Inflicted Damage 38 | . . 38 Shots 1 | . . 1 Rammed . | . . . Targets Rammed . | . . . Kicked . | . . . Crushed . | . . . Highest Temperature 143 | 72 141 143 Average Temperature 50 | 34 53 51 Received Heat Transfer 291 | . 120 171 Siege Activations . | . . . Martial Activations . | . . . Shielding Activations . | . . . Robots Disrupted 1 | . . 1 Combat Hostiles 1 | . . 1 Robots Corrupted 1 | . . 1 Combat Hostiles . | . . . Parts Fried 1 | . . 1 Impact Corruptions 2 | . . 2 Robots Melted . | . . . Combat Hostiles . | . . . Parts Melted 6 | 1 3 2 Heat Transferred 2725 | 333 1258 1134 Parts Sabotaged . | . . . Parts Stolen . | . . . Parts Stripped . | . . . Power Chain Reactions 1 | . . 1 Alert | -11 -10 -10 ------- Run | Yrd Mat Sub Maximum Alert Level . | . . . Low Security (%) 100 | 100 100 . Level 1 . | . . . Level 2 . | . . . Level 3 . | . . . Level 4 . | . . . Level 5 . | . . . High Security . | . . . Max Security . | . . . Peak Influence 118 | 10 118 . Initial . | . . . Average 31 | 1 33 . Influence Increases 555 | 10 360 185 Destroy 0b10 Robot/C 380 | . 260 120 Destroy 0b10 Robot/NC 10 | 10 . . Destroy Leader 80 | . 60 20 Successful Hack 24 | . 24 . Destroy Structure 1 | . 1 . Lose Combat Pursuer 60 | . 15 45 Influence Decreases 509 | 10 290 209 Entered New Map 34 | . . 34 Time Decay 445 | 10 280 155 Lost Part 30 | . 10 20 Squads Dispatched 3 | . 3 . Investigation 1 | . 1 . Extermination . | . . . Reinforcement 2 | . 2 . Assault . | . . . Garrison . | . . . Intercept . | . . . Searches Triggered . | . . . Construction Impeded . | . . . Haulers Reinforced . | . . . Active Scanning Responses . | . . . Cargo Convoy Interrupts . | . . . Stealth | -11 -10 -10 --------- Run | Yrd Mat Sub Distress Signals 1 | . 1 . Communications Jammed . | . . . Distress Signals . | . . . Times Spotted 35 | . 21 14 Peak Tracking Total 5 | . 5 3 Tactical Retreats 4 | . 1 3 Traps | -11 -10 -10 ------- Run | Yrd Mat Sub Traps Triggered 2 | . 2 . Indirectly . | . . . Trap Hack Attempts . | . . . Triggered . | . . . Disarmed . | . . . Reprogrammed 4 | . 4 . Reused . | . . . Traps Extracted . | . . . Installed . | . . . Triggered . | . . . Most Traps Carried 1 | . . 1 Machines | -11 -10 -10 ---------- Run | Yrd Mat Sub Machines Disabled 3 | . . 3 Max in Single Turn 1 | . . 1 Machines Repaired . | . . . Machines Dismantled . | . . . Machines Sabotaged . | . . . Overloaded Fab Kills . | . . . Hacking | -11 -10 -10 --------- Run | Yrd Mat Sub Machines Accessed 8 | . 6 2 Terminals 6 | . 6 . Fabricators . | . . . Repair Stations . | . . . Recycling Units . | . . . Scanalyzers . | . . . Garrison Access . | . . . Total Hacks 28 | . 23 5 Successful 16 | . 11 5 Failed 12 | . 12 . Catastrophic . | . . . Database Lockouts . | . . . Manual 12 | . 12 . Terminals 23 | . 23 . Fabricators . | . . . Repair Stations . | . . . Recycling Units . | . . . Scanalyzers . | . . . Garrison Access . | . . . Terminal Hacks 11 | . 6 5 Record 4 | . . 4 Prototype ID Bank 1 | . 1 . Locate Traps 2 | . 2 . Reprogram Traps 1 | . 1 . Hauler Manifests 1 | . 1 . Zone Layout 1 | . 1 . Proto ID Catalog 1 | . . 1 Fabricator Hacks . | . . . Repair Station Hacks . | . . . Recycling Unit Hacks . | . . . Scanalyzer . | . . . Garrison Access Hacks . | . . . Unauthorized Hacks 5 | . 5 . Terminals 5 | . 5 . Botnet 3 | . 3 . Skim 2 | . 2 . Fabricators . | . . . Repair Stations . | . . . Recycling Units . | . . . Scanalyzers . | . . . Garrison Access . | . . . Data Cores Recovered . | . . . Used . | . . . Hacking Detections 6 | . 6 . Full Trace Events 1 | . 1 . Feedback Events . | . . . Feedback Blocked . | . . . Robot Schematics Acquired . | . . . Robots Built . | . . . Authchips . | . . . Time . | . . . Total Robot Build Rating . | . . . Part Schematics Acquired . | . . . Parts Built . | . . . Authchips . | . . . Time . | . . . Total Part Build Rating . | . . . Part Studies Acquired . | . . . Parts Repaired . | . . . Time . | . . . Parts Recycled . | . . . Recycled Matter . | . . . Retrieved Matter . | . . . Retrieved Components . | . . . Parts Scanalyzed . | . . . Part Schematics Acquired . | . . . Parts Damaged . | . . . Bothacking | -11 -10 -10 ------------ Run | Yrd Mat Sub Used RIF Installer . | . . . Robots Hacked . | . . . Non-combat . | . . . Combat . | . . . Robot Hacks Applied . | . . . Relay Couplers Released . | . . . Fabnet Peak Effective % . | . . . Robots Rewired . | . . . Allies Hacked . | . . . Hacks Repelled . | . . . Allies | -11 -10 -10 -------- Run | Yrd Mat Sub Total Allies . | . . . Largest Group . | . . . Highest-Rated Group . | . . . Highest-Rated Ally . | . . . Total Orders . | . . . Ally Attacks . | . . . Total Damage . | . . . Kills . | . . . Allies Corrupted . | . . . Allies Melted . | . . . Intel | -11 -10 -10 ------- Run | Yrd Mat Sub Active Infowar (turns) 1859 | 28 822 1009 Structural 16 | . . 16 Seismic 1843 | 28 822 993 Robot Analysis Total . | . . . Derelict Logs Recovered 3 | . . 3 Drone Launches . | . . . Drone Recoveries . | . . . Exploration | -11 -10 -10 ------------- Run | Yrd Mat Sub Turns Passed 2531 | 99 1082 1350 Spaces Moved 1428 | 48 584 796 Core 3 | 3 . . Treads 591 | . 226 365 Legs 403 | 45 358 . Wheels 431 | . . 431 Hover . | . . . Flight . | . . . Fastest Speed 50 | 50 120 110 Average Speed 144 | 115 159 135 Slowest Speed 190 | 120 190 160 Overloaded Moves . | . . . Propulsion Burnouts . | . . . Robots Hopped . | . . . Potential Cave-ins . | . . . Cave-ins Triggered . | . . . Exploration Rate (%) 50 | 4 100 46 Regions Visited 2 Branch Regions 1 Pre-discovered Areas 2 | . . 2 Known Exits Taken . | . . . Unknown Exits Taken 2 | 1 1 . Scrap Searched 5 | . . 5 Spaces Dug . | . . . Terrain Destroyed 4 | . . 4 Melee . | . . . Projectile . | . . . AOE 4 | . . 4 Terrain Rammed . | . . . Walls Destroyed . | . . . Machines Disabled . | . . . Actions | -11 -10 -10 --------- Run | Yrd Mat Sub Total 1713 | 70 666 977 Wait 111 | . 20 91 Move 1426 | 47 583 796 Hop . | . . . Pick Up 35 | 7 11 17 Fast Attach 6 | 6 . . Attach 11 | 1 1 9 Detach . | . . . Swap 29 | . 12 17 Drop 10 | . 6 4 Fire 81 | 9 33 39 Melee 4 | . . 4 Ram . | . . . Kick . | . . . Crush . | . . . Escape Stasis . | . . . Rewire . | . . . Trap . | . . . Miscellaneous . | . . . Route ------- -11/Scrapyard -10/Materials (discovered 6 exits: [*Mat x3] / [*Min x2] / *Sub) -10/Subcaves (discovered 2 exits: [*Mat] / [*Rec]) History --------- Turn | Location | Event 4 | -11/Scrapyard | Discovered new exit (range 16) 100 | -11/Scrapyard | Entered Materials 213 | -10/Materials | Discovered new exit (range 6) 313 | -10/Materials | Discovered new exit (range 16) 322 | -10/Materials | Build established: Mutant 428 | -10/Materials | Discovered new exit (range 16) 654 | -10/Materials | Discovered new exit (range 16) 1112 | -10/Materials | Discovered new exit (range 7) 1167 | -10/Materials | Discovered new exit (range 10) 1182 | -10/Materials | Entered Subcaves 1183 | -10/Subcaves | Approached by a straggling Scientist 1211 | -10/Subcaves | Learned location of Storage (-9) 1515 | -10/Subcaves | Core integrity fell below 50% 1537 | -10/Subcaves | Learned Materials security intel 1589 | -10/Subcaves | Discovered new exit (range 15) 1622 | -10/Subcaves | Visited Clippyterm 1627 | -10/Subcaves | Learned 40 Factory zone layouts 1662 | -10/Subcaves | A swath of the cavern ceiling suddenly collapsed 1934 | -10/Subcaves | Disturbed a concealed Subdweller 2046 | -10/Subcaves | Visited 4L-MR0's lab 2061 | -10/Subcaves | Found Meta Core 2219 | -10/Subcaves | Core integrity fell below 20% 2530 | -10/Subcaves | Discovered new exit (range 16) 2532 | -10/Subcaves | Destroyed by Autobeam Turret with Autobeam Last Messages --------------- 02222_ Y-45 Defender suffers critical hit (Burn). 02222_ Lgt. Treads melted. 02222_ Lgt. Armor Plating melted. 02222_ Y-45 Defender destroyed. 02229_ Acquired 25 matter. 02253_ WU00>PVBORBPUM,